fUSD/lending_fUSD_20240218
["ID","MTS","AMOUNT","RATE_DAILY","PERIOD"]
[314392777,1708265446513,-500.0,0.00037099,2]
[314392778,1708265446523,-500.0,0.00037099,2]
[314392779,1708265446532,-293.8035311,0.00037099,2]
[314392780,1708265446545,-1178.76,0.00037099,2]
[314392781,1708265446555,-1178.76,0.00037099,2]
[314392782,1708265446564,-500.0,0.00037099,2]
[314392783,1708265446573,-500.0,0.00037099,2]
[314392784,1708265446582,-500.0,0.00037099,2]
[314392785,1708265446591,-611.42484191,0.00037099,2]
[314392786,1708265446600,-500.0,0.00037099,2]
[314392787,1708265446609,-500.0,0.00037099,2]
[314392788,1708265446619,-379.91,0.00037099,2]
[314392789,1708265446628,-500.0,0.00037099,2]
[314392790,1708265446638,-500.0,0.00037099,2]
[314392791,1708265446647,-429092.97145483,0.000371,3]
[314392792,1708265446656,-5000.0,0.00037133,3]
[314392793,1708265446666,-152.44065032,0.00037133,2]
[314392794,1708265446675,-522.96455701,0.00037133,2]
[314392795,1708265446685,-297.86364853,0.0003714,8]
[314392796,1708265446695,-242.11031263,0.00037147,27]
[314392797,1708265446705,-5092.70017987,0.00037147,2]
[314392798,1708265446715,-532.06716282,0.00037147,2]
[314392799,1708265446724,-642.24296278,0.00037147,2]
[314392800,1708265446732,-800.0,0.00037199,3]
[314392801,1708265446742,-200.0,0.00037199,10]
[314392802,1708265446751,-200.0,0.00037199,10]
[314392803,1708265446761,-313.0,0.000372,10]
[314392804,1708265446770,-500.0,0.00037232,2]
[314392805,1708265446779,-500.0,0.00037232,2]
[314392806,1708265446789,-500.0,0.00037232,2]
[314392807,1708265446799,-500.0,0.00037232,2]
[314392808,1708265446809,-292.28,0.00037232,2]
[314392809,1708265446820,-641835.16806589,0.00037233,3]
[314392810,1708265446829,-4183.77108204,0.00037233,2]
[314392811,1708265446839,-2132051.37877865,0.00037233,2]
[314392812,1708265446848,-297.86364853,0.00037247,8]
[314392813,1708265446858,-242.1103126,0.00037306,28]
[314392814,1708265446867,-297.86364853,0.00037354,8]
[314392815,1708265446877,-500.0,0.00037399,2]
[314392816,1708265446886,-500.0,0.00037399,2]
[314392817,1708265446894,-57004.26465428,0.000374,2]
[314392818,1708265446904,-151.0,0.00037408,7]
[314392819,1708265446913,-214.0,0.0003742,2]
[314392820,1708265446922,-297.86364853,0.00037462,8]
[314392821,1708265446932,-242.1103126,0.00037465,28]
[314392822,1708265446941,-5092.70017987,0.00037465,2]
[314392823,1708265446949,-532.06716281,0.00037465,2]
[314392824,1708265446959,-642.24296276,0.00037465,2]
[314392825,1708265446968,-7317.4814248,0.00037486,2]
[314392826,1708265446977,-3496.0397813,0.00037486,2]
[314392827,1708265446986,-94823.2542936,0.00037487,2]
[314392828,1708265446995,-542.62392033,0.00037488,2]
[314392829,1708265447006,-150.01,0.00037498,2]
[314392830,1708265447015,-3318.4901846,0.00037498,2]
[314392831,1708265447025,-293.81499625,0.00037499,4]
[314392832,1708265447034,-1178.76,0.00037499,2]
[314392833,1708265447044,-533.87708,0.00037499,2]
[314392834,1708265447053,-91182.81830379,0.000375,5]
[314392835,1708265447062,-1692.02,0.000375,2]
[314392836,1708265447071,-3927.23956125,0.000375,15]
[314392837,1708265447080,-1000.0,0.000375,2]
[314392838,1708265447089,-1409.38556331,0.000375,4]
[314392839,1708265447098,-947.68,0.000375,7]
[314392840,1708265447108,-974.16,0.000375,3]
[314392841,1708265447117,-150.0,0.00037501,2]
[314392842,1708265447127,-150.0,0.00037503,2]
[314392843,1708265447136,-150.0,0.00037503,2]
[314392844,1708265447146,-150.0,0.00037519,2]
[314392845,1708265447154,-150.0,0.00037525,2]
[314392846,1708265447163,-150.0,0.00037526,2]
[314392847,1708265447172,-150.0,0.00037529,2]
[314392848,1708265447182,-150.0,0.0003754,2]
[314392849,1708265447191,-150.0,0.00037546,2]
[314392850,1708265447200,-297.86364853,0.00037569,8]
[314392851,1708265447209,-150.0,0.0003757,2]
[314392852,1708265447219,-150.0,0.00037575,2]
[314392853,1708265447231,-150.0,0.00037578,2]
[314392854,1708265447241,-300.0,0.00037589,2]
[314392855,1708265447251,-150.0,0.00037595,2]
[314392856,1708265447260,-1000.0,0.00037599,2]
[314392857,1708265447271,-150.0,0.000376,2]
[314392858,1708265447280,-150.0,0.00037602,2]
[314392859,1708265447289,-150.0,0.00037603,2]
[314392860,1708265447299,-150.0,0.00037604,2]
[314392861,1708265447309,-150.0,0.00037605,2]
[314392862,1708265447319,-1009.67850339,0.0003761,10]
[314392863,1708265447329,-150.0,0.00037618,2]
[314392864,1708265447340,-219.91,0.0003762,2]
[314392865,1708265447350,-150.0,0.00037623,2]
[314392866,1708265447359,-1408.74573016,0.00037623,2]
[314392867,1708265447368,-242.1103126,0.00037624,28]
[314392868,1708265447380,-150.0,0.00037636,2]
[314392869,1708265447392,-1009.67850335,0.00037636,10]
[314392870,1708265447404,-150.0,0.00037638,2]
[314392871,1708265447416,-150.0,0.00037642,2]
[314392872,1708265447427,-150.0,0.00037643,2]
[314392873,1708265447439,-150.0,0.00037647,2]
[314392874,1708265447452,-150.0,0.00037651,2]
[314392875,1708265447462,-150.0,0.00037652,2]
[314392876,1708265447472,-150.0,0.00037656,2]
[314392877,1708265447482,-2229.07118998,0.00037659,7]
[314392899,1708266631980,-309.55822901,0.00031553,4]
[314392900,1708266631989,-41.44297842,0.00031554,4]
[314392901,1708266632004,-458.55702158,0.00031554,4]
[314392902,1708266632013,-152.0,0.0003156,3]
[314392903,1708266632022,-504.51,0.0003248,2]
[314392904,1708266632032,-2044.0,0.00033619,2]
[314392905,1708266632042,-666.4,0.00033769,2]
[314392906,1708266632052,-189.84,0.00033878,10]
[314392907,1708266632061,-250.0,0.00033884,2]
[314392908,1708266632071,-500.0,0.00033884,2]
[314392909,1708266632081,-926.81530348,0.00033893,2]
[314392910,1708266632090,-156.86050682,0.0003393,2]
[314392911,1708266632099,-194.84,0.00033977,2]
[314392912,1708266632109,-500.0,0.00034029,2]
[314392913,1708266632118,-300.0,0.0003447,3]
[314392914,1708266632127,-4312.99914963,0.00034471,2]
[314392915,1708266632139,-1679.06194262,0.00034471,2]
[314392916,1708266632150,-13829.8592536,0.00034471,2]
[314392917,1708266632209,-423.87000001,0.00034471,2]
[314392918,1708266632266,-3644.20965414,0.00034471,2]
[314392920,1708266632275,-8279.29,0.00034471,2]
[314392922,1708266632284,-622.67,0.00034471,2]
[314392924,1708266632293,-161.86,0.0003449,2]
[314392926,1708266632302,-7147.927511,0.0003452,2]
[314392928,1708266632311,-270.54,0.00034521,2]
[314392930,1708266632320,-153.75,0.00034526,2]
[314392932,1708266632330,-250.0,0.00034526,2]
[314392934,1708266632339,-419.77098359,0.00034623,4]
[314392935,1708266632348,-750.42,0.00034685,2]
[314392936,1708266632358,-504.51,0.00034744,2]
[314392937,1708266632366,-10721.891267,0.00034794,2]
[314392938,1708266632375,-153.75,0.00034826,2]
[314392939,1708266632384,-152.0,0.00034848,4]
[314392940,1708266632393,-532.02686135,0.000349,2]
[314392941,1708266632403,-987.41936254,0.000349,2]
[314392942,1708266632412,-198.5757657,0.000349,7]
[314392943,1708266632421,-14295.855022,0.00034931,2]
[314392944,1708266632431,-150.0,0.00034959,2]
[314392945,1708266632439,-2687.36,0.0003499,2]
[314392946,1708266632449,-2687.36,0.0003499,2]
[314392947,1708266632458,-2687.36,0.0003499,2]
[314392948,1708266632468,-153.47506137,0.0003499,2]
[314392949,1708266632477,-442605.39394513,0.00034998,2]
[314392951,1708266637902,-499.41906507,0.00034988,2]
[314392952,1708266637958,-575.52093493,0.00034988,2]
[314392953,1708266637967,-60.45131027,0.0003499,2]
[314392954,1708266637978,-1014.48868973,0.0003499,2]
[314392955,1708266637987,-5941.42345356,0.00034998,2]
[314392956,1708266637999,-4773.01651812,0.00034998,2]
[314392957,1708266638011,-1004.01266038,0.00034998,2]
[314392958,1708266638023,-2079.32734662,0.00034998,2]
[314392959,1708266638031,-1534.51754736,0.00035,2]
[314392960,1708266638043,-373.48115516,0.00035,2]
[314392961,1708266638060,-364475.00129748,0.00035,2]
[314392962,1708266638069,-391.67431304,0.00035,4]
[314392963,1708266638081,-302.29,0.00035,2]
[314392964,1708266638090,-17869.818778,0.00035068,2]
[314392965,1708266638099,-153.75,0.00035126,2]
[314392966,1708266638108,-25017.746289,0.00035342,2]
[314392967,1708266638118,-666.4,0.00035413,2]
[314392968,1708266638127,-153.75,0.00035425,2]
[314392969,1708266638137,-499.99,0.00035425,2]
[314392970,1708266638146,-284.05,0.00035615,2]
[314392971,1708266638155,-267.55,0.00035616,2]
[314392972,1708266638165,-500.0,0.00035616,2]
[314392973,1708266638174,-1840.0,0.000357,2]
[314392974,1708266638184,-153.75,0.00035725,2]
[314392975,1708266638193,-270.54,0.00035798,2]
[314392976,1708266638202,-17518.0,0.000358,3]
[314392977,1708266638211,-155.0,0.000358,2]
[314392978,1708266638220,-179.24,0.00035828,2]
[314392979,1708266638230,-196.4,0.00035909,2]
[314392980,1708266638239,-153.75,0.00036025,2]
[314392981,1708266638249,-975.71,0.00036092,2]
[314392982,1708266638258,-8181.489,0.00036112,2]
[314392983,1708266638267,-7295.564,0.00036112,2]
[314392984,1708266638276,-2291.0,0.00036112,2]
[314392985,1708266638285,-1231.0,0.00036112,2]
[314392986,1708266638294,-2886.0,0.00036112,2]
[314392987,1708266638304,-1000.0,0.0003616,2]
[314392988,1708266638313,-598.85462927,0.00036289,2]
[314392990,1708266638322,-152.22987909,0.00036289,2]
[314392991,1708266638331,-242.31686436,0.00036289,2]
[314392992,1708266638340,-164.49529373,0.00036289,2]
[314392993,1708266638352,-153.75,0.00036325,2]
[314392995,1708266638361,-198.57576568,0.00036356,7]
[314392997,1708266638370,-1111926.25930967,0.00036378,3]
[314392999,1708266638380,-3347.10054105,0.00036389,2]
[314393000,1708266638389,-6958.74208818,0.00036389,2]
[314393001,1708266638398,-6958.74208818,0.00036389,2]
[314393002,1708266638407,-6958.74208818,0.00036389,2]
[314393003,1708266638416,-987.41936251,0.00036479,2]
[314393004,1708266638425,-17518.0,0.000365,5]
[314393005,1708266638434,-6958.74208818,0.00036567,2]
[314393006,1708266638443,-7154.63126007,0.00036684,4]
[314393007,1708266638453,-1865.56498674,0.00036798,2]
[314393008,1708266638462,-1865.56498671,0.00036798,2]
[314393009,1708266638472,-1865.56498671,0.00036798,2]
[314393010,1708266638481,-1865.56498671,0.00036798,2]
[314393011,1708266638491,-1125.9655,0.000368,2]
[314393012,1708266638500,-245000.0,0.000368,2]
[314393013,1708266638510,-28591.710045,0.000368,2]
[314393014,1708266638519,-400.0,0.00036899,3]
[314393015,1708266638528,-400.0,0.00036899,3]
[314393016,1708266638538,-500.0,0.00036899,2]
[314393017,1708266638547,-500.0,0.00036899,2]
[314393018,1708266638556,-500.0,0.00036899,2]
[314393019,1708266638566,-500.0,0.00036899,2]
[314393020,1708266638577,-442.46,0.00036899,2]
[314393021,1708266638586,-500.0,0.00036899,2]
[314393022,1708266638596,-500.0,0.00036899,2]
[314393023,1708266638606,-500.0,0.00036899,2]
[314393024,1708266638617,-500.0,0.00036899,2]
[314393025,1708266638626,-500.0,0.00036899,2]
[314393026,1708266638635,-500.0,0.00036899,2]
[314393027,1708266638645,-500.0,0.00036899,2]
[314393028,1708266638655,-500.0,0.00036899,2]
[314393029,1708266638664,-500.0,0.00036899,2]
[314393030,1708266638674,-500.0,0.00036899,2]
[314393031,1708266638683,-500.0,0.00036899,2]
[314393032,1708266638692,-1095.32,0.00036899,2]
[314393033,1708266638701,-550.233,0.00036899,2]
[314393034,1708266638711,-500.0,0.00036899,2]
[314393035,1708266638720,-164.42529707,0.00036899,2]
[314393036,1708266638729,-200.0,0.00036987,2]
[314393037,1708266638739,-500.0,0.00036989,2]
[314393038,1708266638749,-1095.32,0.00036989,2]
[314393039,1708266638758,-23407.11259583,0.0003699,7]
[314393040,1708266638767,-997.98,0.00037,2]
[314393041,1708266638776,-312.44640567,0.00037,4]
[314393042,1708266638785,-151990.99250708,0.00037,2]
[314393043,1708266638795,-509.73186497,0.00037,2]
[314393044,1708266638804,-1641.0,0.00037,2]
[314393045,1708266638813,-504.51,0.00037008,2]
[314393046,1708266638822,-200.0,0.00037037,2]
[314393047,1708266638831,-242.31686436,0.00037051,2]
[314393048,1708266638840,-598.85462926,0.00037055,2]
[314393049,1708266638850,-666.4,0.00037057,2]
[314393050,1708266638859,-270.54,0.00037075,2]
[314393051,1708266638868,-500.0,0.00037099,2]
[314393052,1708266638877,-500.0,0.00037099,2]
[314393053,1708266638887,-6958.74208818,0.00037122,2]
[314393054,1708266639094,-1865.56498671,0.00037122,2]
[314393055,1708266639113,-200.0,0.00037123,2]
[314393056,1708266639125,-500.0,0.00037132,2]
[314393057,1708266639135,-500.0,0.00037132,2]
[314393058,1708266639145,-200.0,0.000372,10]
[314393059,1708266639154,-500.0,0.00037276,2]
[314393060,1708266639164,-800.0,0.00037277,3]
[314393061,1708266639174,-200.0,0.00037277,10]
[314393062,1708266639183,-200.0,0.00037277,10]
[314393063,1708266639193,-150.0,0.00037357,2]
[314393064,1708266639202,-151.0,0.00037365,120]
[314393065,1708266639212,-1408.74573013,0.00037384,2]
[314393066,1708266639223,-405.51,0.00037397,2]
[314393067,1708266639233,-164.7,0.00037419,2]
[314393068,1708266639243,-150.0,0.00037527,2]
[314393069,1708266639252,-150.0,0.00037551,2]
[314393070,1708266639262,-155.3845667,0.00037559,2]
[314393071,1708266639271,-3150.7881,0.0003756,2]
[314393072,1708266639281,-1830.5033,0.0003756,2]
[314393073,1708266639290,-150.0,0.00037596,2]
[314393074,1708266639300,-150.0,0.00037596,2]
[314393075,1708266639309,-1000.0,0.00037599,2]
[314393076,1708266639318,-1522.516027,0.000376,24]
[314393077,1708266639328,-150.0,0.00037604,2]
[314393078,1708266639337,-150.0,0.00037611,2]
[314393079,1708266639347,-150.0,0.00037614,2]
[314393080,1708266639356,-179.24,0.00037619,2]
[314393081,1708266639365,-841.39875281,0.0003765,10]
[314393082,1708266639375,-150.01,0.00037655,2]
[314393083,1708266639384,-3318.4901846,0.00037655,2]
[314393084,1708266639393,-598.65416,0.00037656,2]
[314393085,1708266639402,-150.0,0.00037657,2]
[314393086,1708266639411,-150.0,0.00037658,2]
[314393087,1708266639421,-500.0,0.00037659,2]
[314393088,1708266639430,-500.0,0.00037659,2]
[314393089,1708266639440,-500.0,0.00037659,2]
[314393090,1708266639449,-500.0,0.00037659,2]
[314393091,1708266639459,-500.0,0.00037659,2]
[314393092,1708266639468,-500.0,0.00037659,2]
[314393093,1708266639478,-500.0,0.00037659,2]
[314393094,1708266639487,-500.0,0.00037659,2]
[314393095,1708266639497,-500.0,0.00037659,2]
[314393096,1708266639506,-500.0,0.00037659,2]
[314393097,1708266639515,-500.0,0.00037659,2]
[314393098,1708266639524,-37594.92881002,0.00037659,7]
[314393099,1708266639534,-3927.23956125,0.00037659,15]
[314393100,1708266639543,-666.0,0.00037659,2]
[314393101,1708266639553,-500.0,0.00037659,2]
[314393102,1708266639563,-500.0,0.00037659,2]
[314393103,1708266639574,-3999.99999698,0.00037659,2]
[314393104,1708266639584,-21114.74,0.00037659,7]
[314393105,1708266639593,-532.02686135,0.00037664,2]
[314393106,1708266639603,-3783.2047,0.00037668,2]
[314393107,1708266639613,-180.0,0.00037671,2]
[314393108,1708266639623,-841.39875279,0.00037673,10]
[314393109,1708266639634,-6958.74208818,0.00037678,2]
[314393110,1708266639643,-1865.56498671,0.00037678,2]
[314393111,1708266639654,-150.0,0.00037681,2]
[314393112,1708266639663,-150.0,0.00037682,2]
[314393113,1708266639673,-152.22987908,0.00037682,2]
[314393114,1708266639682,-1500.0,0.00037684,2]
[314393115,1708266639691,-841.39875279,0.00037695,10]
[314393116,1708266639701,-1019.85351028,0.000377,7]
[314393118,1708266639710,-200.0,0.000377,12]
[314393119,1708266639720,-2748.715503,0.000377,6]
[314393120,1708266639730,-3000.0,0.000377,32]
[314393121,1708266639739,-150.0,0.000377,12]
[314393122,1708266639750,-200.0,0.000377,2]
[314393123,1708266639759,-5485.184379,0.0003771,32]
[314393124,1708266639769,-841.39875279,0.00037718,11]
[314393125,1708266639778,-150.0,0.00037722,2]
[314393126,1708266639787,-150.0,0.00037727,2]
[314393127,1708266639797,-300.0,0.00037733,2]
[314393128,1708266639806,-300.0,0.00037733,2]
[314393129,1708266639815,-300.0,0.00037733,2]
[314393130,1708266639824,-300.0,0.00037733,2]
[314393131,1708266639834,-300.0,0.00037733,2]
[314393132,1708266639843,-214.70198504,0.00037733,2]
[314393133,1708266639852,-500.0,0.00037733,2]
[314393134,1708266639862,-1095.32,0.00037733,2]
[314393135,1708266639871,-7263.4693907,0.00037734,2]
[314393136,1708266639880,-3470.2346978,0.00037734,2]
[314393137,1708266639889,-16418.13730826,0.00037734,2]
[314393138,1708266639905,-1048.2710283,0.00037734,2]
[314393139,1708266639917,-659.1292335,0.00037734,2]
[314393140,1708266639938,-1074.94,0.0003499,2]
[314393141,1708266639947,-12317.57840333,0.00037734,2]
[314393142,1708266639963,-250.0,0.00037734,2]
[314393143,1708266639975,-2483.8545,0.00037734,2]
[314393144,1708266639999,-60946.37130331,0.00037734,2]
[314393145,1708266640009,-150.0,0.00037739,2]
[314393146,1708266640018,-841.39875279,0.00037741,11]
[314393147,1708266640028,-500.0,0.00037741,2]
[314393148,1708266640037,-1095.32,0.00037741,2]
[314393149,1708266640046,-1077.60692208,0.0003775,4]
[314393150,1708266640055,-150.0,0.00037758,2]
[314393151,1708266640065,-379.80309236,0.00037758,2]
[314393152,1708266640074,-500.0,0.00037758,2]
[314393153,1708266640083,-500.0,0.00037758,2]
[314393154,1708266640092,-1095.32,0.00037758,2]
[314393155,1708266640101,-500.0,0.00037758,2]
[314393156,1708266640110,-150.0,0.00037759,2]
[314393157,1708266640119,-300.0,0.00037759,7]
[314393158,1708266640128,-500.0,0.00037759,2]
[314393159,1708266640137,-500.0,0.00037759,2]
[314393160,1708266640146,-600.61820157,0.00037759,2]
[314393161,1708266640155,-500.0,0.00037759,2]
[314393162,1708266640164,-500.0,0.00037759,2]
[314393163,1708266640173,-500.0,0.00037759,2]
[314393164,1708266640182,-500.0,0.00037759,2]
[314393165,1708266640191,-258.20033715,0.00037759,2]
[314393166,1708266640200,-1095.32,0.00037759,2]
[314393167,1708266640209,-1095.32,0.00037759,2]
[314393168,1708266640218,-1095.32,0.00037759,2]
[314393169,1708266640228,-1095.32,0.00037759,2]
[314393170,1708266640236,-1095.32,0.00037759,2]
[314393171,1708266640246,-1095.32,0.00037759,2]
[314393172,1708266640255,-1095.32,0.00037759,2]
[314393173,1708266640264,-1095.32,0.00037759,2]
[314393174,1708266640273,-1095.32,0.00037759,2]
[314393175,1708266640282,-500.0,0.00037759,2]
[314393176,1708266640292,-500.0,0.00037759,2]
[314393177,1708266640302,-500.0,0.00037759,2]
[314393178,1708266640311,-500.0,0.00037759,2]
[314393179,1708266640320,-500.0,0.00037759,2]
[314393180,1708266640329,-219.87928254,0.00037759,2]
[314393181,1708266640338,-73914.76328521,0.0003776,2]
[314393185,1708266641533,-1074.94,0.0003499,2]
[314393186,1708266641543,-1074.94,0.00036369,2]
[314393187,1708266641553,-1697.56672663,0.000369,2]
[314393188,1708266641565,-50155.0326466,0.0003776,2]
[314393189,1708266641608,-56051.88,0.0003776,2]
[314393193,1708266642945,-169.017,0.00036098,2]
[314393194,1708266642954,-300.02,0.00037655,2]
[314393195,1708266642964,-1935285.53355019,0.0003776,2]
[314393196,1708266643217,-3318.4901846,0.00037655,2]
[314393197,1708266643226,-45768.62812152,0.0003776,2]
[314393199,1708266646000,-514.89739082,0.00033893,2]
[314393200,1708266646010,-500.0,0.00035616,2]
[314393201,1708266646020,-1697.56672662,0.000374,2]
[314393202,1708266646029,-1114.29014777,0.00037664,2]
[314393203,1708266646039,-281.69798841,0.00037759,4]
[314393204,1708266646048,-5979.56179364,0.0003776,2]
[314393205,1708266646061,-2590.5207,0.0003776,2]
[314393206,1708266646226,-16371.1736862,0.0003776,2]
[314393210,1708267144459,8625.659528,1e-08,2]
[314393211,1708267185863,673.88662365,1e-08,2]
[314393212,1708267185886,4199.21005506,1e-08,2]
[314393213,1708267203869,4873.09667871,1e-08,2]
[314393214,1708267223861,4873.09667871,1e-08,2]
[314393215,1708267247888,599.4615165,1e-08,2]
[314393216,1708267247912,4273.63516221,1e-08,2]
[314393217,1708267270023,4873.09667871,1e-08,2]
[314393218,1708267285860,4873.09667871,1e-08,2]
[314393219,1708267286818,150.0,0.000286,120]
[314393220,1708267503117,550.0,0.00025,3]
[314393221,1708267678434,392.19458279,0.00025,2]
[314393222,1708267698437,392.19458279,0.00025,2]
[314393223,1708267720457,392.19458279,0.00025,2]
[314393229,1708267832140,-500.0,0.00026466,2]
[314393230,1708267832149,-358.16390953,0.00026467,3]
[314393231,1708267832195,-1173.16928929,0.00026467,3]
[314393232,1708267832205,-128.50371071,0.00027,3]
[314393233,1708267832217,-471.49628929,0.00027,3]
[314393234,1708267832226,-650.0,0.00029,3]
[314393235,1708267832236,-700.0,0.00031,3]
[314393236,1708267832245,-750.0,0.00033,3]
[314393237,1708267832254,-14.90371071,0.00033771,2]
[314393238,1708267832268,-163.69628929,0.00033771,2]
[314393239,1708267832279,-396.48371071,0.00033798,4]
[314393240,1708267832290,-603.51628929,0.00033798,4]
[314393241,1708267832477,-250.0,0.00033833,2]
[314393242,1708267832487,-207.95225766,0.00033884,2]
[314393243,1708267832496,-284.05,0.00033894,2]
[314393244,1708267832505,-1000.0,0.00033977,2]
[314393245,1708267832514,-514.89739082,0.00033984,2]
[314393246,1708267832524,-667.200363,0.00034,35]
[314393247,1708267832533,-1226.13,0.00034063,2]
[314393248,1708267832542,-530.77,0.00034253,2]
[314393249,1708267832551,-150.0,0.00034519,3]
[314393251,1708267832561,-150.0,0.00034519,2]
[314393252,1708267832570,-344.523654,0.0003452,2]
[314393254,1708267832578,-13278.66732428,0.0003452,2]
[314393256,1708267832591,-667.49720572,0.0003452,2]
[314393258,1708267832601,-1429.585502,0.0003452,2]
[314393260,1708267832609,-595.36,0.00034646,2]
[314393262,1708267832618,-516.785482,0.00034794,2]
[314393264,1708267832627,-7314.5857503,0.00034794,2]
[314393265,1708267832650,-1350.1,0.00034794,2]
[314393266,1708267832666,-12254.5610447,0.00034794,2]
[314393267,1708267832675,-2144.378253,0.00034794,2]
[314393268,1708267832685,-2071.32412673,0.00034885,2]
[314393269,1708267832694,-689.047309,0.00034931,2]
[314393270,1708267832703,-6181.96761072,0.00034931,2]
[314393271,1708267832714,-11588.48870135,0.00034931,2]
[314393272,1708267832729,-599.42504188,0.00034931,2]
[314393273,1708267832741,-917.30499999,0.00034931,2]
[314393279,1708267838129,-8605.14270606,0.00034931,2]
[314393280,1708267838139,-2859.171004,0.00034931,2]
[314393281,1708267838148,-600.0,0.00035,36]
[314393282,1708267838157,-800.0,0.00035,3]
[314393283,1708267838166,-250.0,0.00035058,3]
[314393284,1708267838176,-758.35,0.00035058,3]
[314393285,1708267838185,-861.309137,0.00035068,2]
[314393286,1708267838194,-266.02715294,0.00035068,2]
[314393287,1708267838289,-34599.38417206,0.00035068,2]
[314393288,1708267838298,-3573.963755,0.00035068,2]
[314393289,1708267838307,-200.0,0.000352,8]
[314393290,1708267838315,-198.57576568,0.00035242,7]
[314393291,1708267838324,-250.0,0.00035277,2]
[314393292,1708267838334,-299.34449879,0.00035338,4]
[314393293,1708267838343,-7154.63126007,0.00035339,4]
[314393294,1708267838352,-390.12334311,0.0003534,4]
[314393295,1708267838362,-15288.56413522,0.0003534,2]
[314393296,1708267838373,-2554.76625377,0.0003534,2]
[314393297,1708267838450,-272389.51308462,0.0003534,2]
[314393300,1708267841929,-2853.39,0.0003534,2]
[314393301,1708267841942,-616.04681995,0.0003534,2]
[314393302,1708267841954,-1102.1574525,0.0003534,2]
[314393303,1708267841966,-46981.73236679,0.0003534,2]
[314393307,1708267843101,-177.45411854,0.0003534,2]
[314393308,1708267843205,-66603.44980808,0.0003534,2]
[314393309,1708267843214,-1205.832791,0.00035342,2]
[314393310,1708267843223,-43890.71739392,0.00035342,2]
[314393311,1708267845135,-2459.53667299,0.00035342,2]
[314393312,1708267845241,-753.27,0.00035342,2]
[314393313,1708267845253,-1708.05178809,0.00035342,2]
[314393314,1708267845262,-4945.30794913,0.00035342,2]
[314393315,1708267845296,-58.24130787,0.00035342,2]
[314393316,1708267845305,-341.38466753,0.0003545,2]
[314393317,1708267845317,-150.32533247,0.0003545,2]
[314393318,1708267845326,-338.06,0.0003545,2]
[314393319,1708267845335,-171.14828818,0.00035616,2]
[314393320,1708267845346,-328.85171182,0.00035616,2]
[314393321,1708267845355,-171.14828818,0.00035616,2]
[314393337,1708267846159,-289.27390122,0.00035616,2]
[314393338,1708267846268,-39.5778106,0.00035616,2]
[314393339,1708267846278,-500.0,0.00035616,2]
[314393340,1708267846287,-500.0,0.00035616,2]
[314393341,1708267846297,-500.0,0.00035616,2]
[314393342,1708267846306,-500.0,0.00035616,2]
[314393343,1708267846315,-500.0,0.00035616,2]
[314393344,1708267846325,-156.386792,0.00035946,2]
[314393345,1708267846334,-600.0,0.00036,37]
[314393346,1708267846343,-625.35,0.00036028,2]
[314393347,1708267846352,-810.235,0.00036108,2]
[314393348,1708267846361,-850.03963074,0.00036108,2]
[314393349,1708267846433,-380.96036926,0.00036108,2]
[314393350,1708267846442,-322.538,0.00036108,2]
[314393351,1708267846451,-150.597,0.00036108,2]
[314393352,1708267846460,-2886.0,0.00036108,2]
[314393353,1708267846469,-1485.20463074,0.00036108,2]
[314393354,1708267846489,-595.44936926,0.00036108,2]
[314393355,1708267846497,-33.34806569,0.00036182,2]
[314393356,1708267846508,-128.97193431,0.00036182,2]
[314393357,1708267846518,-200.0,0.000362,9]
[314393358,1708267846527,-152.24,0.00036204,2]